bitfinex/quotes_BTCUSD_20241010
["timestamp","ask_amount","ask_price","bid_price","bid_amount"]
[1728570229524,0.1645,60790.0,60789.0,0.0168411]
[1728570230009,0.328976,60795.0,60790.0,0.1645]
[1728570230010,0.164493,60793.0,60790.0,0.1645]
[1728570230241,0.328976,60795.0,60794.0,0.001]
[1728570230492,0.493463,60795.0,60794.0,0.001]
[1728570231922,0.328976,60795.0,60789.0,0.0168411]
[1728570232154,0.328976,60795.0,60790.0,0.000819]
[1728570232155,0.164499,60791.0,60790.0,0.000819]
[1728570232392,0.2467455,60791.0,60790.0,0.000819]
[1728570234513,0.001,60793.0,60790.0,0.000819]
[1728570235201,0.165493,60793.0,60790.0,0.165318]
[1728570235206,0.001,60793.0,60790.0,0.000819]
[1728570235436,0.001,60793.0,60792.0,0.164495]
[1728570235683,0.328966,60797.0,60791.0,0.328996]
[1728570235684,0.328964,60797.0,60791.0,0.164497]
[1728570235913,0.164493,60793.0,60790.0,0.170319]
[1728570236147,0.164488,60795.0,60791.0,0.164496]
[1728570236397,0.328959,60798.0,60791.0,0.164497]
[1728570236641,0.328971,60796.0,60791.0,0.164497]
[1728570236870,0.328971,60796.0,60792.0,0.166495]
[1728570236871,0.001,60793.0,60792.0,0.166495]
[1728570237113,0.165492,60793.0,60792.0,0.002]
[1728570237342,0.001,60793.0,60792.0,0.166495]
[1728570238051,0.164481,60797.0,60793.0,0.164491]
[1728570238285,0.164481,60797.0,60794.0,0.164489]
[1728570238511,0.164478,60799.0,60796.0,0.164484]
[1728570238762,0.164479,60798.0,60795.0,0.164485]
[1728570239003,0.328939,60802.0,60794.0,0.328979]
[1728570239004,0.328932,60803.0,60794.0,0.328979]
[1728570239245,0.24637217,60800.0,60796.0,0.164484]
[1728570239484,0.328939,60802.0,60797.0,0.164481]
[1728570239485,0.002,60798.0,60797.0,0.164481]
[1728570239971,0.164471,60801.0,60798.0,0.164478]
[1728570240229,0.001,60799.0,60798.0,0.164478]
[1728570240479,0.001,60799.0,60798.0,0.164479]
[1728570240714,0.001,60799.0,60796.0,0.328963]
[1728570240974,0.001,60799.0,60795.0,0.00328933]
[1728570240975,0.001,60799.0,60797.0,0.164481]
[1728570241221,0.001,60799.0,60796.0,0.328968]
[1728570241472,0.001,60799.0,60797.0,0.164481]
[1728570241706,0.001,60799.0,60798.0,0.164479]
[1728570242424,0.001,60799.0,60798.0,0.32860223]
[1728570242679,0.001,60799.0,60798.0,0.32531664]
[1728570242957,0.24637217,60807.0,60796.0,0.328968]
[1728570243181,0.24637217,60807.0,60796.0,0.48980264]
[1728570243182,0.328926,60804.0,60796.0,0.48980264]
[1728570243416,0.328921,60805.0,60795.0,0.035]
[1728570243652,0.164465,60803.0,60800.0,0.164473]
[1728570244383,0.164465,60803.0,60799.0,0.164475]
[1728570244624,0.27100939,60807.0,60799.0,0.164475]
[1728570244625,0.164468,60802.0,60799.0,0.164476]
[1728570244883,0.328929,60804.0,60798.0,0.164478]
[1728570245138,0.04582112,60806.0,60799.0,0.164475]
[1728570245139,0.164469,60802.0,60799.0,0.164475]
[1728570245625,0.328934,60803.0,60796.0,0.003]
[1728570245871,0.164469,60802.0,60799.0,0.164475]
[1728570246620,0.328931,60803.0,60800.0,0.004]
[1728570246621,0.00016,60803.0,60800.0,0.004]
[1728570246861,0.00016,60803.0,60801.0,0.32894]
[1728570247094,0.00016,60803.0,60801.0,0.164469]
[1728570247581,0.00016,60803.0,60800.0,0.002]
[1728570247809,0.00016,60803.0,60795.0,0.363973]
[1728570248069,0.00016,60803.0,60795.0,0.035]
[1728570248303,0.00016,60803.0,60802.0,0.164468]
[1728570248539,0.00016,60803.0,60802.0,0.241268]
[1728570249762,0.00016,60803.0,60801.0,0.004]
[1728570249763,0.164468,60802.0,60801.0,0.004]
[1728570250003,0.40118957,60802.0,60801.0,0.004]
[1728570250238,0.56202721,60802.0,60801.0,0.006]
[1728570250697,0.56202721,60802.0,60801.0,0.004]
[1728570250926,0.73962721,60802.0,60801.0,0.004]
[1728570251162,0.73962721,60802.0,60789.0,0.0168411]
[1728570251163,0.164498,60791.0,60789.0,0.0168411]
[1728570252395,0.89500001,60801.0,60789.0,0.0168411]
[1728570252396,0.24637217,60800.0,60789.0,0.0168411]
[1728570252647,0.164495,60792.0,60789.0,0.1813431]
[1728570252891,0.164498,60791.0,60789.0,0.0168411]
[1728570253634,0.328974,60795.0,60789.0,0.0168411]
[1728570253871,0.164494,60793.0,60789.0,0.0168411]
[1728570254105,0.164497,60792.0,60789.0,0.0168411]
[1728570254369,0.328981,60794.0,60789.0,0.0168411]
[1728570254604,0.328981,60794.0,60789.0,0.1813441]
[1728570254830,0.32897,60796.0,60790.0,0.165319]
[1728570254831,0.164492,60793.0,60790.0,0.165319]
[1728570255072,0.328961,60798.0,60790.0,0.000819]
[1728570255316,0.164479,60798.0,60794.0,0.164488]
[1728570255539,0.24637217,60802.0,60793.0,0.164492]
[1728570255846,0.164485,60796.0,60793.0,0.164492]
[1728570256087,0.328983,60794.0,60790.0,0.001819]
[1728570256315,0.164497,60792.0,60790.0,0.004819]
[1728570256546,0.18720177,60800.0,60790.0,0.004819]
[1728570256784,0.164498,60791.0,60790.0,0.001819]
[1728570257256,0.16449,60794.0,60790.0,0.001819]
[1728570257490,0.16449,60794.0,60790.0,0.165319]
[1728570257721,0.164488,60795.0,60790.0,0.329815]
[1728570257951,0.164484,60797.0,60793.0,0.164491]
[1728570258192,0.164485,60796.0,60793.0,0.164492]
[1728570258701,0.164482,60797.0,60792.0,0.164493]
[1728570258931,0.164479,60798.0,60794.0,0.164487]
[1728570259168,0.164484,60796.0,60793.0,0.164492]
[1728570259403,0.24637217,60801.0,60795.0,0.328969]
[1728570259642,0.164476,60799.0,60796.0,0.164483]
[1728570259882,0.164476,60799.0,60793.0,0.32898]
[1728570260110,0.164476,60799.0,60795.0,0.164486]
[1728570260355,0.328953,60799.0,60793.0,0.32898]
[1728570260589,0.27564173,60798.0,60795.0,0.164486]
[1728570261075,0.164481,60797.0,60796.0,0.004]
[1728570261297,0.164487,60795.0,60792.0,0.164495]
[1728570261763,0.44012073,60798.0,60793.0,0.004]
[1728570262053,0.164471,60801.0,60794.0,0.328977]
[1728570262327,0.41084717,60800.0,60796.0,0.164484]
[1728570262558,0.164479,60798.0,60795.0,0.164486]
[1728570262799,0.32894,60802.0,60795.0,0.164486]
[1728570262800,0.328937,60802.0,60795.0,0.328972]
[1728570263059,0.16448,60798.0,60795.0,0.164486]
[1728570263307,0.329092,60803.0,60793.0,0.332981]
[1728570263537,0.329092,60803.0,60796.0,0.164482]
[1728570263538,0.164474,60800.0,60796.0,0.164482]
[1728570263770,0.24637217,60802.0,60792.0,0.002]
[1728570264002,0.328981,60794.0,60792.0,0.002]
[1728570264240,0.164492,60793.0,60792.0,0.002]
[1728570264468,0.164492,60793.0,60790.0,0.000819]
[1728570264469,0.164498,60791.0,60790.0,0.000819]
[1728570264731,0.328992,60792.0,60790.0,0.000819]
[1728570264732,0.32899,60792.0,60790.0,0.000819]
[1728570264988,0.164498,60791.0,60790.0,0.000819]
[1728570265233,0.164492,60794.0,60790.0,0.000819]
[1728570265467,0.18720177,60799.0,60790.0,0.000819]
[1728570265702,0.164498,60791.0,60790.0,0.000819]
[1728570265953,0.164498,60791.0,60790.0,0.002819]
[1728570266435,0.164497,60792.0,60790.0,0.002819]
[1728570266681,0.164498,60791.0,60790.0,0.002819]
[1728570267185,0.164497,60792.0,60790.0,0.002819]
[1728570267459,0.164492,60794.0,60790.0,0.002819]
[1728570267699,0.164492,60793.0,60790.0,0.167317]
[1728570267950,0.164493,60793.0,60790.0,0.165318]
[1728570268180,0.164492,60793.0,60790.0,0.004819]
[1728570268438,0.164492,60793.0,60790.0,0.169318]
[1728570268689,0.164492,60793.0,60790.0,0.004819]
[1728570268690,0.328989,60793.0,60790.0,0.004819]
[1728570268954,0.164498,60791.0,60790.0,0.000819]
[1728570269221,0.164498,60791.0,60790.0,0.003819]
[1728570269482,0.4330841,60791.0,60790.0,0.000819]
[1728570270425,0.59392174,60791.0,60790.0,0.001819]
[1728570270661,0.67142174,60791.0,60790.0,0.001819]
[1728570271192,0.76492174,60791.0,60790.0,0.003819]
[1728570271452,0.76492174,60791.0,60789.0,0.0168411]
[1728570271453,0.248427,60780.0,60779.0,0.000818]
[1728570271692,0.80618982,60780.0,60779.0,0.000818]
[1728570271955,0.73486641,60780.0,60779.0,0.000818]
[1728570272435,0.78367425,60780.0,60779.0,0.000818]
[1728570272900,0.264549,60772.0,60771.0,0.000818]
[1728570273166,0.73826931,60772.0,60771.0,0.000818]
[1728570273398,0.61258841,60772.0,60771.0,0.000818]
[1728570274619,0.63837477,60772.0,60771.0,0.000818]
[1728570275597,0.61258841,60772.0,60771.0,0.000818]
[1728570276289,0.42538664,60772.0,60771.0,0.000818]
[1728570276520,0.77047612,60772.0,60771.0,0.000818]
[1728570276983,0.78747612,60772.0,60771.0,0.001818]
[1728570277923,0.62958841,60772.0,60771.0,0.001818]
[1728570278155,0.46875077,60772.0,60771.0,0.001818]
[1728570278402,0.281549,60772.0,60771.0,0.001818]
[1728570280077,0.39083549,60772.0,60771.0,0.001818]
[1728570280312,0.7980453,60772.0,60771.0,0.001818]
[1728570280534,0.71247974,60772.0,60771.0,0.001818]
[1728570281675,0.61247974,60772.0,60771.0,0.001818]
[1728570282391,0.50319325,60772.0,60771.0,0.001818]
[1728570282855,0.82636542,60772.0,60771.0,0.001818]
[1728570283088,0.57999325,60772.0,60771.0,0.001818]
[1728570283326,0.41918664,60772.0,60771.0,0.001818]
[1728570284286,0.181549,60772.0,60771.0,0.001818]
[1728570284525,0.017,60772.0,60771.0,0.16637]
[1728570285718,0.017,60772.0,60771.0,0.16892499]
[1728570286261,0.017,60772.0,60771.0,0.35276263]
[1728570286523,0.24637217,60781.0,60780.0,0.169527]
[1728570286786,0.24637217,60781.0,60780.0,0.51756641]
[1728570287035,0.24637217,60781.0,60780.0,0.32536464]
[1728570287269,0.164508,60787.0,60783.0,0.164518]
[1728570287514,0.41087817,60788.0,60781.0,0.329046]
[1728570287770,0.329018,60787.0,60779.0,0.329058]
[1728570288021,0.329018,60787.0,60781.0,0.164524]
[1728570288288,0.164514,60785.0,60781.0,0.164524]
[1728570288519,0.11515799,60785.0,60774.0,0.1]
[1728570288780,0.11515799,60785.0,60779.0,0.164529]
[1728570288781,0.164519,60783.0,60779.0,0.164529]
[1728570289086,0.164519,60783.0,60778.0,0.164533]
[1728570289087,0.164525,60781.0,60778.0,0.164533]
[1728570289328,0.002,60772.0,60771.0,0.164552]
[1728570289570,0.002,60772.0,60764.0,0.32914]
[1728570289836,0.164553,60771.0,60767.0,0.164561]
[1728570290063,0.18720177,60773.0,60763.0,0.164571]
[1728570290064,0.164563,60767.0,60763.0,0.164571]
[1728570290328,0.164563,60767.0,60753.0,0.0811]
[1728570290329,0.18720177,60773.0,60756.0,0.329184]
[1728570290566,0.18720177,60773.0,60758.0,0.32917]
[1728570290567,0.329135,60766.0,60758.0,0.32917]
[1728570290793,0.164566,60766.0,60760.0,0.32916]
[1728570291052,0.329121,60768.0,60760.0,0.32916]
[1728570291320,0.164564,60767.0,60763.0,0.164573]
[1728570291591,0.329086,60775.0,60765.0,0.329136]
[1728570291841,0.18720177,60779.0,60763.0,0.164572]
[1728570291842,0.001,60766.0,60763.0,0.164572]
[1728570292077,0.001,60766.0,60763.0,0.329147]
[1728570292325,0.001,60766.0,60765.0,0.164568]
[1728570292804,0.24637217,60769.0,60768.0,0.16456]
[1728570293055,0.164547,60773.0,60769.0,0.164556]
[1728570293323,0.164547,60773.0,60767.0,0.329121]
[1728570293324,0.329089,60774.0,60768.0,0.329116]
[1728570293547,0.04893541,60775.0,60768.0,0.329116]
[1728570293548,0.003,60775.0,60770.0,0.329106]
[1728570293773,0.41091617,60774.0,60771.0,0.164551]
[1728570294234,0.164544,60774.0,60771.0,0.164551]
[1728570294958,0.164547,60773.0,60770.0,0.164554]
[1728570295214,0.164547,60773.0,60766.0,0.32913]
[1728570295443,0.164568,60765.0,60763.0,0.006]
[1728570295737,0.164568,60765.0,60762.0,0.000818]
[1728570295961,0.164573,60763.0,60762.0,0.000818]
[1728570296471,0.2469574,60763.0,60762.0,0.000818]
[1728570296937,0.164573,60763.0,60762.0,0.000818]
[1728570297401,0.164573,60763.0,60762.0,0.008818]
[1728570297402,0.165573,60763.0,60762.0,0.008818]
[1728570300109,0.166573,60763.0,60762.0,0.018818]
[1728570300582,0.002,60763.0,60762.0,0.018818]
[1728570301586,0.002,60763.0,60762.0,0.183394]
[1728570301870,0.002,60763.0,60762.0,0.72347242]
[1728570302345,0.002,60763.0,60762.0,0.77115936]
[1728570304388,0.002,60763.0,60762.0,0.30224258]
[1728570304610,0.002,60763.0,60762.0,0.018818]
[1728570305073,0.2161428,60763.0,60762.0,0.018818]
[1728570306549,0.47698044,60763.0,60762.0,0.018818]
[1728570306785,0.48198044,60763.0,60762.0,0.018818]
[1728570307032,0.266573,60763.0,60762.0,0.018818]
[1728570307277,0.266573,60763.0,60762.0,0.010818]
[1728570307278,0.42641064,60763.0,60762.0,0.010818]
[1728570307786,0.42641064,60763.0,60762.0,0.011818]
[1728570308049,0.165573,60763.0,60762.0,0.011818]
[1728570308302,0.001,60763.0,60762.0,0.011818]
[1728570308532,0.165573,60763.0,60762.0,0.011818]
[1728570308765,0.001,60763.0,60762.0,0.011818]
[1728570309001,0.164573,60763.0,60762.0,0.001818]
[1728570309239,0.164573,60763.0,60762.0,0.003818]
[1728570309497,0.164573,60763.0,60762.0,0.002818]
[1728570309742,0.164573,60763.0,60762.0,0.001818]
[1728570309743,0.014,60763.0,60762.0,0.001818]
[1728570309979,0.014,60763.0,60762.0,0.002818]
[1728570309980,0.028,60763.0,60762.0,0.002818]
[1728570310221,0.178573,60763.0,60762.0,0.001818]
[1728570310453,0.164573,60763.0,60762.0,0.001818]
[1728570310930,0.27149442,60763.0,60762.0,0.001818]
[1728570311410,0.164573,60763.0,60762.0,0.001818]
[1728570311826,0.32541064,60763.0,60762.0,0.001818]
[1728570312069,0.43041064,60763.0,60762.0,0.001818]
[1728570312308,0.43041064,60763.0,60762.0,0.003818]
[1728570312539,0.45619929,60763.0,60762.0,0.000818]
[1728570312762,0.6250059,60763.0,60762.0,0.001818]
[1728570313038,0.6280059,60763.0,60762.0,0.001818]
[1728570313290,0.6280059,60763.0,60745.0,0.006]
[1728570313291,0.005,60746.0,60745.0,0.006]
[1728570313523,0.55295978,60746.0,60745.0,0.006]
[1728570313760,0.83430056,60746.0,60745.0,0.006]
[1728570313991,0.83430056,60746.0,60732.0,0.24637217]
[1728570313992,0.164655,60733.0,60732.0,0.24637217]
[1728570314481,0.164665,60729.0,60728.0,0.0160221]
[1728570315927,0.2469946,60729.0,60728.0,0.0160221]
[1728570316449,0.164665,60729.0,60728.0,0.0160221]
[1728570318433,0.334251,60744.0,60728.0,0.0160221]
[1728570318434,0.329251,60744.0,60728.0,0.0160221]
[1728570318701,0.24637217,60738.0,60730.0,0.329324]
[1728570318936,0.24637217,60738.0,60728.0,0.0160221]
[1728570318937,0.164663,60730.0,60728.0,0.0160221]
[1728570319178,0.28134078,60743.0,60728.0,0.0160221]
[1728570319179,0.003,60729.0,60728.0,0.0160221]
[1728570319482,0.003,60729.0,60728.0,0.1918443]
[1728570319721,0.69675778,60751.0,60728.0,0.1918443]
[1728570319722,0.69175778,60751.0,60735.0,0.164648]
[1728570319943,0.24637217,60736.0,60735.0,0.164648]
[1728570320174,0.164642,60738.0,60736.0,0.0079155]
[1728570320415,0.164639,60739.0,60735.0,0.17256898]
[1728570320651,0.164641,60738.0,60737.0,0.00791002]
[1728570320884,0.164641,60738.0,60729.0,0.57569917]
[1728570320885,0.16464,60739.0,60735.0,0.164648]
[1728570321121,0.16464,60739.0,60734.0,0.164649]
[1728570321356,0.164642,60738.0,60736.0,0.0079155]
[1728570321593,0.164646,60736.0,60735.0,0.00792098]
[1728570321848,0.164646,60736.0,60731.0,0.164659]
[1728570321849,0.164647,60736.0,60731.0,0.164658]
[1728570322075,0.164644,60737.0,60733.0,0.164652]
[1728570322312,0.57565717,60738.0,60729.0,0.329328]
[1728570322543,0.167647,60736.0,60732.0,0.164656]
[1728570322771,0.0856204,60736.0,60731.0,0.329317]
[1728570323005,0.164661,60731.0,60728.0,0.0168401]
[1728570323239,0.003,60736.0,60728.0,0.0168401]
[1728570323458,0.329306,60734.0,60728.0,0.0168401]
[1728570323684,0.329316,60732.0,60729.0,0.00794054]
[1728570323912,0.329306,60734.0,60728.0,0.0168401]
[1728570323913,0.164661,60731.0,60728.0,0.0168401]
[1728570324154,0.164661,60731.0,60730.0,0.00793506]
[1728570324155,0.16466,60731.0,60730.0,0.00793506]
[1728570324385,0.164663,60730.0,60729.0,0.00794054]
[1728570324636,0.32931,60733.0,60728.0,0.0168401]
[1728570324895,0.24637217,60740.0,60728.0,0.0168401]
[1728570324896,0.002,60736.0,60728.0,0.0168401]
[1728570325136,0.005,60738.0,60728.0,0.0168401]
[1728570325372,0.005,60738.0,60728.0,0.0178401]
[1728570325373,0.164665,60729.0,60728.0,0.0178401]
[1728570325669,0.164665,60729.0,60728.0,0.0168401]
[1728570326107,0.165663,60730.0,60729.0,0.001]
[1728570326354,0.164665,60729.0,60728.0,0.0168401]
[1728570326588,0.164661,60731.0,60728.0,0.0168401]
[1728570326842,0.02147048,60738.0,60728.0,0.0168401]
[1728570326843,0.329289,60737.0,60728.0,0.0168401]
[1728570327088,0.164649,60735.0,60732.0,0.164657]
[1728570327316,0.36884412,60737.0,60732.0,0.164656]
[1728570327552,0.329289,60737.0,60728.0,0.0168401]
[1728570327798,0.164655,60733.0,60729.0,0.164663]
[1728570328078,0.164665,60729.0,60728.0,0.0168401]
[1728570328317,0.32550264,60729.0,60728.0,0.0168401]
[1728570328543,0.164665,60729.0,60728.0,0.0168401]
[1728570329010,0.17987831,60729.0,60728.0,0.0168401]
[1728570330400,0.32550264,60729.0,60728.0,0.0168401]
[1728570330631,0.164665,60729.0,60728.0,0.0168401]
[1728570331891,0.168665,60729.0,60728.0,0.0168401]
[1728570332645,0.18590424,60729.0,60728.0,0.0168401]
[1728570332898,0.02123924,60729.0,60728.0,0.0168401]
[1728570333139,0.006,60729.0,60728.0,0.0168401]
[1728570333633,0.170665,60729.0,60728.0,0.02483012]
[1728570334100,0.170665,60729.0,60728.0,0.0168401]
[1728570334626,0.006,60729.0,60728.0,0.0168401]
[1728570335343,0.170665,60729.0,60728.0,0.0248566]
[1728570335821,0.006,60729.0,60728.0,0.0248566]
[1728570336316,0.006,60729.0,60728.0,0.1895246]
[1728570337269,0.006,60729.0,60728.0,0.0248566]
[1728570337501,0.006,60729.0,60728.0,0.1895246]
[1728570337723,0.003,60729.0,60728.0,0.19281737]
[1728570338195,0.003,60729.0,60728.0,0.19681737]
[1728570338466,0.003,60729.0,60728.0,0.1935246]
[1728570338939,0.164665,60729.0,60728.0,0.0288566]
[1728570339175,0.1811315,60729.0,60728.0,0.0288566]
[1728570339450,0.165665,60729.0,60728.0,0.0288566]
[1728570339698,0.165665,60729.0,60728.0,0.0208401]
[1728570340487,0.165665,60729.0,60728.0,0.0168401]
[1728570340720,0.164665,60729.0,60728.0,0.0168401]
[1728570340989,0.2479952,60729.0,60728.0,0.0168401]
[1728570341462,0.2469952,60729.0,60728.0,0.0168401]
[1728570342442,0.2499952,60729.0,60728.0,0.0168401]
[1728570343157,0.167665,60729.0,60728.0,0.0168401]
[1728570343634,0.164665,60729.0,60728.0,0.0168401]
[1728570343894,0.164665,60729.0,60728.0,0.02484118]
[1728570344130,0.167665,60729.0,60728.0,0.0168401]
[1728570344635,0.166665,60729.0,60728.0,0.0168401]
[1728570344901,0.169665,60729.0,60728.0,0.0168401]
[1728570345377,0.005,60729.0,60728.0,0.0168401]
[1728570345852,0.005,60729.0,60728.0,0.18950918]
[1728570346122,0.005,60729.0,60728.0,0.02484118]
[1728570346374,0.005,60729.0,60728.0,0.18950918]
[1728570346615,0.005,60729.0,60728.0,0.02484118]
[1728570346864,0.169665,60729.0,60728.0,0.02484118]
[1728570347119,0.005,60729.0,60728.0,0.02484118]
[1728570347623,0.005,60729.0,60728.0,0.18950918]
[1728570347875,0.005,60729.0,60728.0,0.02484118]
[1728570348371,0.169665,60729.0,60728.0,0.02484118]
[1728570348871,0.169665,60729.0,60728.0,0.0168401]
[1728570349101,0.169665,60729.0,60728.0,0.02484118]
[1728570349346,0.169665,60729.0,60728.0,0.0168401]
[1728570352011,0.169665,60729.0,60728.0,0.02484118]
[1728570352240,0.2524953,60729.0,60728.0,0.0168401]
[1728570352462,0.169665,60729.0,60728.0,0.0168401]
[1728570352685,0.005,60729.0,60728.0,0.0168401]
[1728570352907,0.169665,60729.0,60728.0,0.0168401]
[1728570353128,0.169665,60729.0,60728.0,0.02484118]
[1728570354501,0.005,60729.0,60728.0,0.02484118]
[1728570354732,0.2030964,60729.0,60728.0,0.02484118]
[1728570354964,0.169665,60729.0,60728.0,0.02484118]
[1728570355191,0.169665,60729.0,60728.0,0.0168401]
[1728570361813,0.005,60729.0,60728.0,0.0168401]
[1728570362040,0.005,60729.0,60728.0,0.1815081]
[1728570362724,0.00466288,60729.0,60728.0,0.1815081]
[1728570363197,0.00466288,60729.0,60728.0,0.42173963]
[1728570363425,0.00466288,60729.0,60728.0,1.11076469]
[1728570363657,0.00466288,60729.0,60728.0,1.02342009]
[1728570363891,0.24637217,60739.0,60738.0,0.164641]
[1728570364145,0.24637217,60739.0,60738.0,0.75520806]
[1728570364377,0.24637217,60747.0,60744.0,0.164625]
[1728570364831,0.166258,60745.0,60744.0,0.01131041]
[1728570365289,0.164636,60740.0,60737.0,0.164643]
[1728570365544,0.164636,60740.0,60732.0,0.35006427]
[1728570365545,0.329281,60739.0,60732.0,0.24637217]
[1728570365768,0.329281,60739.0,60738.0,0.01126393]
[1728570366012,0.329281,60739.0,60733.0,0.329308]
[1728570366013,0.32926,60743.0,60733.0,0.329308]
[1728570366226,0.164638,60739.0,60738.0,0.01127681]
[1728570366462,0.164642,60738.0,60735.0,0.164648]
[1728570366710,0.329264,60742.0,60733.0,0.329308]
[1728570366711,0.164638,60739.0,60733.0,0.329308]
[1728570366983,0.001,60739.0,60738.0,0.002]
[1728570367198,0.24637217,60743.0,60741.0,0.164632]
[1728570367449,0.001636,60745.0,60738.0,0.17211445]
[1728570367708,0.001636,60745.0,60744.0,0.164625]
[1728570367935,0.001636,60745.0,60740.0,0.164636]
[1728570367936,0.16463,60743.0,60740.0,0.164636]
[1728570368169,0.001636,60745.0,60739.0,0.164637]
[1728570368170,0.164631,60742.0,60739.0,0.164637]
[1728570368402,0.330884,60745.0,60740.0,0.164636]
[1728570368403,0.164629,60743.0,60740.0,0.164636]
[1728570368635,0.164629,60743.0,60740.0,0.01126665]
[1728570369109,0.16463,60742.0,60740.0,0.01126665]
[1728570369354,0.164633,60741.0,60740.0,0.01126665]
[1728570369598,0.164628,60743.0,60740.0,0.01126665]
[1728570369864,0.001796,60745.0,60738.0,0.335282]
[1728570370096,0.001796,60745.0,60740.0,0.32927]
[1728570370350,0.329251,60744.0,60738.0,0.16083764]
[1728570370643,0.165631,60742.0,60741.0,0.01125843]
[1728570370892,0.165631,60742.0,60740.0,0.001]
[1728570370893,0.164633,60741.0,60740.0,0.001]
[1728570371408,0.165631,60742.0,60739.0,0.164638]
[1728570371673,0.164636,60740.0,60736.0,0.164644]
[1728570371918,0.164637,60740.0,60737.0,0.164644]
[1728570372678,0.16463,60743.0,60740.0,0.164635]
[1728570372910,0.16463,60743.0,60740.0,0.164633]
[1728570372911,0.164629,60743.0,60740.0,0.164633]
[1728570373111,0.003796,60745.0,60741.0,0.329266]
[1728570373406,0.003796,60745.0,60733.0,0.18776229]
[1728570373407,0.25016817,60745.0,60733.0,0.18776229]
[1728570373657,0.164637,60740.0,60737.0,0.164643]
[1728570373917,0.164637,60740.0,60736.0,0.164645]
[1728570374126,0.329267,60741.0,60737.0,0.003]
[1728570374127,0.164639,60739.0,60737.0,0.003]
[1728570374354,0.329262,60742.0,60739.0,0.002]
[1728570374598,0.331046,60745.0,60739.0,0.002]
[1728570374833,0.331046,60745.0,60740.0,0.164635]
[1728570374834,0.329254,60744.0,60740.0,0.164635]
[1728570375056,0.164632,60742.0,60738.0,0.16464]
[1728570375304,0.164637,60740.0,60737.0,0.164644]
[1728570375538,0.329264,60742.0,60732.0,0.329311]
[1728570375539,0.329277,60739.0,60732.0,0.329311]
[1728570375769,0.164641,60738.0,60737.0,0.002]
[1728570376030,0.164639,60739.0,60737.0,0.002]
[1728570376261,0.164641,60738.0,60737.0,0.002]
[1728570376505,0.2470604,60738.0,60737.0,0.002]
[1728570376723,0.164641,60738.0,60737.0,0.002]
[1728570376971,0.329277,60739.0,60737.0,0.002]
[1728570377189,0.329277,60739.0,60737.0,0.005]
[1728570377190,0.164641,60738.0,60737.0,0.005]
[1728570377666,0.493937,60737.0,60732.0,0.164657]
[1728570377911,0.164648,60736.0,60731.0,0.329319]
[1728570378148,0.164648,60736.0,60733.0,0.164654]
[1728570378378,0.329293,60737.0,60731.0,0.32549564]
[1728570378642,0.329316,60732.0,60725.0,0.32935]
[1728570378880,0.329316,60732.0,60722.0,0.37867409]
[1728570378881,0.164665,60729.0,60722.0,0.329368]
[1728570379125,0.164665,60729.0,60726.0,0.164783]
[1728570379344,0.164665,60729.0,60726.0,0.00011]
[1728570379841,0.164665,60729.0,60726.0,0.164783]
[1728570380071,0.329316,60732.0,60726.0,0.00011]
[1728570380288,0.164663,60730.0,60727.0,0.164671]
[1728570380535,0.164665,60729.0,60726.0,0.164783]
[1728570380762,0.165665,60729.0,60728.0,0.0268401]
[1728570381239,0.164665,60729.0,60728.0,0.0168401]
[1728570381472,0.329325,60731.0,60728.0,0.1815071]
[1728570381473,0.164661,60731.0,60728.0,0.1815071]
[1728570381723,0.329301,60735.0,60728.0,0.0168401]
[1728570381969,0.164665,60729.0,60728.0,0.0168401]
[1728570384525,0.35510021,60735.0,60730.0,0.164662]
[1728570384526,0.001,60732.0,60730.0,0.164662]
[1728570384736,0.165658,60732.0,60728.0,0.37626839]
[1728570385030,0.1656109,60729.0,60728.0,0.0258401]
[1728570385276,0.1656109,60729.0,60728.0,0.0188401]
[1728570386710,0.16552946,60729.0,60728.0,0.0188401]
[1728570386951,0.164665,60729.0,60728.0,0.0168401]
[1728570387368,0.164665,60729.0,60728.0,0.0188401]
[1728570387594,0.164665,60729.0,60728.0,0.0238401]
[1728570387820,0.164665,60729.0,60728.0,0.0218401]
[1728570388053,0.165665,60729.0,60728.0,0.0238401]
[1728570398570,0.001,60729.0,60728.0,0.37627039]
[1728570399046,0.001,60729.0,60728.0,0.53710803]
[1728570399323,0.001,60729.0,60728.0,0.56010803]
[1728570399612,0.001636,60732.0,60728.0,0.56010803]
[1728570399613,0.001636,60732.0,60731.0,0.19466]
[1728570399869,0.001636,60732.0,60731.0,0.68077821]
[1728570400100,0.001636,60732.0,60731.0,1.28755235]
[1728570400331,0.001636,60732.0,60731.0,1.28747058]
[1728570400590,0.24637217,60737.0,60736.0,0.192646]
[1728570400828,0.24637217,60737.0,60736.0,0.54124593]
[1728570401081,0.001636,60740.0,60739.0,0.187638]
[1728570401320,0.001636,60740.0,60739.0,0.71963793]
[1728570401774,0.001636,60740.0,60739.0,0.71763793]
[1728570403262,0.001636,60740.0,60739.0,0.52987564]
[1728570403513,0.001636,60740.0,60739.0,0.164638]
[1728570403789,0.001636,60740.0,60738.0,0.164641]
[1728570403993,0.001636,60740.0,60738.0,0.16464]
[1728570404230,0.166274,60740.0,60736.0,0.166646]
[1728570404481,0.166274,60740.0,60733.0,0.164653]
[1728570404482,0.164647,60736.0,60733.0,0.164653]
[1728570404717,0.001636,60740.0,60734.0,0.164651]
[1728570404718,0.164645,60737.0,60734.0,0.164651]
[1728570404947,0.166273,60740.0,60739.0,0.014]
[1728570405423,0.164641,60738.0,60735.0,0.164649]
[1728570405658,0.001636,60740.0,60737.0,0.164642]
[1728570405890,0.33091,60740.0,60734.0,0.329303]
[1728570406123,0.329277,60739.0,60734.0,0.164649]